Workbook

Sheet A&W BoQ
A2: SUPPLIER PARK DEVELOPMENT COMPANY T/A AIDC
A3: CONTRACT AIDC_T05_2024/25
B4: AS AND WHEN CIVILS & STRUCTURAL WORKS FOR THE PERIOD OF 36 MONTHS AT THE SUPPLIER PARK DEVELOPMENT COMPANY SOC LTD T/A AIDC FOR THE FOLLOWING DIFFERENT SITES, NAMELY: 1) AUTOMOTVE SUPPLIER PARK (ASP) - ROSSLYN 2) AUTOMOTIVE INCUBATION CENTRE (AIC) - SILVERTON 3) WINTERVELD ENTERPRISE HUB - WINTERFELDT 4) GAUTENG LEARNING CENTRE (GALC) - ROSSLYN 5) CHAMDOR AUTOMOTIVE HUB - KRUGERSDORP
A6: PROVISIONAL BILLS OF QUANTITIES
A7: Bidder to complete ONLY Column E (unit Price)
A8: ITEM NO | B8: DESCRIPTION | C8: UNIT | D8: QTY | E8: RATE | F8: AMOUNT
B10: BILL No. 1
B12: ALTERATIONS
B14: PREAMBLES
B16: For preambles refer to "Model Preambles for Trades"
B18: SUPPLEMENTARY PREAMBLES
B20: Demolitions and Works on Site
B22: All demolitions and works on site must be carried out carefully and in the safest possible manner and the Contractor is to make a thorough examination and take all necessary precautions before proceeding with the work. The utmost care is to be observed to avoid any structural or other damage in the remaining portions of the existing building Special care is to be exercised not to interfere with any electrical installation, and notice is to be given to the Representative/Agent when any disconnections, removal of wires, etc. necessary and the Contractor is to afford every facility to the workmen carrying out his work The Contractor shall not remove or interfere with any furniture, fittings or similar articles unless specially mentioned in the following items and shall give adequate notice to the Representative/Agent of the removal of any articles from parts of the building are to be altered becomes necessary so that the Employer may have same removed before the Contractor commences work in such parts The Contractor will be held solely responsible for any damage to persons and property and for the safety of the structures and must make good at his expense any damage that may occur
B24: Old materials to become property of the contractor
B26: Old materials from alterations except where described to be re-used or handed over, become the property of the contractor
B28: Old materials to be carted away
B30: Old materials from alterations except where described as re-used or handed over, as well as all rubbish, etc. must be regularly carted from the site and not be allowed to accumulate on or around the site.
B32: Old materials to be re-used
B34: None of the old materials are to be used for new work except where specifically described as being set aside for re-use.
B36: Handing over of materials
B38: Where certain materials or articles from demolitions or alterations are described as to be handed over by the contractor to the Department's Representative or Representative/Agent such materials or articles shall be properly stored by the contractor until handing over thereof. The contractor must obtain an official receipt listing the materials or articles and dates of handover. If the contractor fails to submit the receipt when requested to do so it shall be deemed that the materials or articles are still in his possession and he will be held liable to the Department for the full replacement value thereof which amount will be deducted from any monies due to the contractor.
B40: General
B42: The contractor shall carry out the whole works with as little mess and noise as possible and with a minimum of disturbance to the occupants of the building. The contractor shall provide proper protection and provide, erect and remove when directed, any temporary tarpaulins that may be necessary during the progress of the works, all to the satisfaction of the Project Manager
B44: Water supply pipes and other piping that may be encountered and found necessary to disconnect or cut, shall be effectually stopped off or grubbed up and removed, and any new connections that may be necessary shall be made with proper fittings, to the satisfaction of the principal agent
B46: Doors, fanlights, fittings, frames, linings, etc. which are to be re-used shall be thoroughly overhauled before refixing including taking off, easing and rehanging, cramping up, re-wedging as required and making good cramps, dowels, etc, and easing, oiling, adjusting and repairing ironmongery as necessary, replacing any glass damaged in removal or subsequently and stopping up all nail and screw holes with tinted plastic wood to match timber, unless otherwise described. Re-painting or re-varnishing is given separately
B48: Prices for taking out of doors, windows, etc. shall include for removal of all beads, architraves, ironmongery, etc.
B50: Prices for taking out and removing doors and frames shall include for removing door stops, cabin hooks, etc. and making good floor and wall finishes to match existing
B52: With regard to building up of openings in existing walls, cement screeds and pavings, granolithic, tops of walls, etc, shall be levelled and prepared for raising of brickwork
B54: Making good of finishes shall include making good of the brick and concrete surfaces onto which the new finishes are applied, where necessary
B56: The contractor will be required to take all dimensions affecting the existing buildings on the site and he will be held solely responsible for the accuracy of all such dimensions where used in the manufacture of new items (doors, windows, fittings, etc.)
B58: REMOVAL OF EXISTING WORK
B60: BUDGETARY ALLOWANCES The following budgetary allowances to be measured in accordance with the aforegoing and priced at scheduled rates
B62: Allow for removal of existing works contingencies to be used as directed by the principal agent and to be measured in accordance with the aforegoing and priced at scheduled rates | C62: Item | D62: 1 | F62: R300,000.00
A64: 1 | B64: Breaking down and removing unreinforced concrete:
B66: 150mm Concrete surface bed | C66: m2 | D66: 1 | E66: 0 | F66: =E66*D66 -> 0
A68: 2 | B68: Breaking up and removing reinforced concrete, including cutting off and removing reinforcement:
B70: 250mm Thick slabs | C70: m2 | D70: 1 | E70: 0 | F70: =E70*D70 -> 0
A72: 3 | B72: Breaking down and removing brickwork etc
B74: Half brick wall | C74: m2 | D74: 1 | E74: 0 | F74: 0
A76: 4 | B76: One brick wall | C76: m2 | D76: 1 | E76: 0 | F76: 0
A78: 5 | B78: Taking out and removing doors, windows, etc from brickwork to be demolished
B80: Timber single door and steel frame not exceeding 2,5m2 | C80: No | D80: 1 | E80: 0 | F80: 0
A82: 6 | B82: Taking out and removing doors, windows, etc. including thresholds, cills, etc:
B84: Timber single door and steel frame not exceeding 2,5m² | C84: No | D84: 1 | E84: 0 | F84: 0
A86: 7 | B86: Cut out steel window sections leaving the sub-frame only and prepare sub-frame to receive new aluminium casement system windows (new aluminium casement system windows elsewhere measured):
B88: Steel window size 1 500 x 1 000mm high overall | C88: No | D88: 1 | E88: 0 | F88: 0
A90: 8 | B90: Taking down and removing roofs, floors, panelling, ceilings, partitions, etc
B92: corrugated roof sheeting including tiles, fascia, gutters, etc complete (area measured on flat) | C92: m2 | D92: 1 | E92: 0 | F92: 0
A94: 9 | B94: Corrugated roof sheets | C94: m2 | D94: 1 | E94: 0 | F94: 0
A96: 10 | B96: Gypsum plasterboard ceilings including cornices, timber brandering, etc | C96: m2 | D96: 1 | E96: 0 | F96: 0
A98: 11 | B98: Rainwater goods and replace with new (e.m) | C98: m | D98: 1 | E98: 0 | F98: 0
A100: 12 | B100: Take down and remove fascias and replace with new (new elsewhere) | C100: m | D100: 1 | E100: 0 | F100: 0
A102: 13 | B102: Carefully remove existing waterproofing from concrete flat roof and prepare surfaces for new waterproofing | C102: m2 | D102: 1 | E102: 0 | F102: 0
A104: 14 | B104: Taking off and removing skirtings:
B106: Timber skirtings from brickwork | C106: m | D106: 1 | E106: 0 | F106: 0
A108: 15 | B108: Hacking up/off and removing ceramic tile floor and wall finishes including removing mortar bed or backing and preparing concrete or brick surfaces for new screed, plaster or tile finishes
A110: 16 | B110: Tiles to floors | C110: m2 | D110: 1 | E110: 0 | F110: 0
A112: 17 | B112: Tiles to walls | C112: m2 | D112: 1 | E112: 0 | F112: 0
B114: Taking up and removing vinyl floor coverings, carpeting, etc:
A116: 18 | B116: Carpet floor covering including preparing screed for new carpet, vinyl sheeting or tile etc. (new floor finish elsewhere) | C116: m2 | D116: 1 | E116: 0 | F116: 0
B118: Taking out and removing piping, sanitary fittings, etc including disconnecting piping from fittings and making good floor and wall finishes (making good tiling and paintwork elsewhere)
A120: 19 | B120: Vitreous china wash hand basin | C120: No | D120: 1 | E120: 0 | F120: 0
A122: 20 | B122: Vitreous china WC pan with cistern | C122: No | D122: 1 | E122: 0 | F122: 0
A124: 21 | B124: Stainless steel urinal 2000 x 1200mm high including breaking up and removing 400mm wide concrete urinal step | C124: No | D124: 1 | E124: 0 | F124: 0
B126: Remove and replace ironmongery:
A128: 22 | B128: Brass window sliding stays | C128: No | D128: 1 | E128: 0 | F128: 0
B130: Taking out and removing glass and mirrors:
A132: 23 | B132: Glass from steel windows including cleaning out rebates and preparing for new glass | C132: m2 | D132: 1 | E132: 0 | F132: =E132*D132 -> 0
A134: 24 | B134: Mirror 400 x 600mm high from wall | C134: No | D134: 1 | E134: 0 | F134: 0
B136: BUILDING UP OPENINGS
B138: Brickwork in NFP bricks in class II mortar in building up openings
A140: 25 | B140: One brick walls | C140: m2 | D140: 1 | E140: 0 | F140: 0
B142: Sundries
A144: 26 | B144: Cutting toothings and bonding new brickwork to existing | C144: m2 | D144: 1 | E144: 0 | F144: 0
B146: MAKING GOOD OF FINISHES ETC
B148: Making good screed
A150: 27 | B150: Floors where one brick walls removed | C150: m | D150: 1 | E150: 0 | F150: 0
A152: 28 | B152: Making good defects in existing screeded floors with "Pavelite" | C152: m2 | D152: 1 | E152: 0 | F152: 0
B154: Making good cement plaster:
A156: 29 | B156: Face of walls where one brick walls removed | C156: m | D156: 1 | E156: 0 | F156: 0
B158: CUTTING THROUGH FLOORS AND CEILINGS
A160: 30 | B160: Cutting through 150mm thick concrete surface bed for 700mm wide concrete wall footing including making good concrete on both sides of new one brick wall | C160: m | D160: 1 | E160: 0 | F160: 0
A162: 31 | B162: Cutting through premix and layer works for 750mm wide x 250mm thick concrete thickening under half brick wall (making good elsewhere) | C162: m | D162: 1 | E162: 0 | F162: 0
B164: OPENINGS THROUGH EXISTING WALLS ETC
B166: Breaking out for and forming plain openings through brick walls, including prestressed concrete lintels, making good cement plaster on both sides and into reveals with steel trowelled finish (making good paintwork elsewhere):
A168: 32 | B168: Opening for single door 813 x 2032mm high | C168: No | D168: 1 | E168: 0 | F168: 0
B170: HIGH PRESSURE CLEANING
B172: High pressure cleaning to existing metal, face brick, plastered surfaces and brick paving
A174: 33 | B174: Metal roof sheeting | C174: m2 | D174: 1 | E174: 0 | F174: 0
A176: 34 | B176: Ceramic floor tiles | C176: m2 | D176: 1 | E176: 0 | F176: 0
B178: SERVICING OF WINDOWS, DOORS, PLUMBING, ETC.
B180: Attend to, service, re-align and repair as necessary all steel windows including replacing any defective or missing parts:
A182: 35 | B182: Window size approximately 1 500 x 1 500mm high overall | C182: No | D182: 1 | E182: 0 | F182: 0
B184: STRUCTURAL REPAIRS
B186: Repair concrete spalling using "Sika MonoTop-615 HB" or similar approved in accordance with manufacturer's specification
A188: 36 | B188: Concrete spalling to edges of overhead slabs and beams | C188: m2 | D188: 1 | E188: 0 | F188: 0
B190: Clean and prepare substrate and apply 'Sikadur - 52' or similar approved crack injection system, all in accordance with manufacturer's instructions:
A192: 37 | B192: Repair cracks in brick walls | C192: m | D192: 1 | E192: 0 | F192: 0
B194: SUNDRIES
A196: 38 | B196: Clean off graffitti from walls using "Plascon Remove All" | C196: m2 | D196: 1 | E196: 0 | F196: =E196*D196 -> 0
B198: TOTAL ALTERATIONS | F198: =SUM(F62:F197) -> R300,000.00
B201: BILL No. 2
B203: EARTHWORKS
B205: PREAMBLES
B207: For preambles refer to "Model Preambles for Trades"
B209: EXCAVATION, FILLING, ETC OTHER THAN BULK
B211: BUDGETARY ALLOWANCES The following budgetary allowances to be measured in accordance with the aforegoing and priced at scheduled rates
B213: Allow for general excavation works contingencies to be used as directed by the principal agent and to be measured in accordance with the aforegoing and priced at scheduled rates | C213: Itm | D213: 1 | F213: R200,000.00
B215: Excavation in earth not exceeding 2m deep:
A217: 1 | B217: Trenches | C217: m3 | D217: 1 | E217: 0 | F217: =E217*D217 -> 0
A219: 2 | B219: Holes | C219: m3 | D219: 1 | E219: 0 | F219: =E219*D219 -> 0
A221: 3 | B221: Trenches and holes for thickening under surface beds etc. | C221: m3 | D221: 1 | E221: 0 | F221: 0
B223: Extra over trench and hole excavations in earth for breaking up and removing
A225: 4 | B225: Brickwork | C225: m3 | D225: 1 | E225: 0 | F225: 0
A227: 5 | B227: Unreinforced concrete | C227: m3 | D227: 1 | E227: 0 | F227: 0
A229: 6 | B229: Reinforced concrete | C229: m3 | D229: 1 | E229: 0 | F229: 0
B231: Extra over all excavations for carting away
A233: 7 | B233: Surplus material from excavations and/or stock piles on site to a dumping site to be located by the contractor | C233: m3 | D233: 1 | E233: 0 | F233: 0
B235: Risk of collapse of excavations
A237: 8 | B237: Sides of trench and hole excavations not exceeding 1,5m deep | C237: m2 | D237: 1 | E237: 0 | F237: =E237*D237 -> 0
B239: Keeping excavations free of water
A241: 9 | B241: Keeping excavations free of all water other than subterranean water | C241: Item | D241: 1 | E241: 0 | F241: 0
B243: Earth filling supplied by the contractor compacted to 98% Mod AASHTO density
A245: 10 | B245: Backfilling to trenches, holes, etc. | C245: m3 | D245: 1 | E245: 0 | F245: 0
B247: Garden soil filling supplied by the contractor
A249: 11 | B249: In flower boxes | C249: m3 | D249: 1 | E249: 0 | F249: 0
B251: TOTAL EARTHWORKS | F251: =SUM(F213:XFD249) -> R200,000.00
B255: BILL No. 3
B257: CONCRETE, FORMWORK AND REINFORCEMENT
B259: PREAMBLES
B261: For preambles refer to "Model Preambles for Trades"
B263: Contractors are to take note of the local procurement requirement in this section of the work
B265: BUDGETARY ALLOWANCES The following budgetary allowances to be measured in accordance with the aforegoing and priced at scheduled rates
B267: Allow for general concrete works contingencies to be used as directed by the principal agent and to be measured in accordance with the aforegoing and priced at scheduled rates | C267: Item | D267: 1 | F267: R200,000.00
B269: REINFORCED CONCRETE
B271: 25MPa/19mm concrete
A273: 1 | B273: Slabs including beams and inverted beams | C273: m3 | D273: 1 | E273: 0 | F273: =E273*D273 -> 0
A275: 2 | B275: Ramp | C275: m3 | D275: 1 | E275: 0 | F275: 0
A277: 3 | B277: Strip footings | C277: m3 | D277: 1 | E277: 0 | F277: 0
A279: 4 | B279: Columns in foundations | C279: m3 | D279: 1 | E279: 0 | F279: 0
A281: 5 | B281: Columns | C281: m3 | D281: 1 | E281: 0 | F281: 0
B283: REINFORCED CONCRETE CAST AGAINST EXCAVATED SURFACES
B285: 25MPa/19mm concrete:
A287: 6 | B287: Bases | C287: m3 | D287: 1 | E287: 0 | F287: 0
A289: 7 | B289: Surface beds on waterproofing | C289: m3 | D289: 1 | E289: 0 | F289: 0
B291: ROUGH FORMWORK (DEGREE OF ACCURACY III)
B293: Rough formwork to sides
A295: 8 | B295: Bases | C295: m2 | D295: 1 | E295: 0 | F295: 0
A297: 9 | B297: Rectangular columns in foundations | C297: m2 | D297: 1 | E297: 0 | F297: 0
A299: 10 | B299: Rectangular columns | C299: m2 | D299: 1 | E299: 0 | F299: 0
A301: 11 | B301: Beams | C301: m2 | D301: 1 | E301: 0 | F301: 0
A303: 12 | B303: Edges, risers, ends and reveals not exceeding 300mm high or wide | C303: m | D303: 1 | E303: 0 | F303: 0
B305: Rough formwork to soffits:
A307: 13 | B307: Slabs propped up exceeding 1,5m and not exceeding 3,5m high | C307: m2 | D307: 1 | E307: 0 | F307: 0
A309: 14 | B309: Beams propped up exceeding 1,5m and not exceeding 3,5m high | C309: m2 | D309: 1 | E309: 0 | F309: 0
B311: MOVEMENT JOINTS ETC.
B313: Malthoid slip joints between horizontal concrete and brick surfaces including cement mortar bed:
A315: 15 | B315: Not exceeding 300mm wide | C315: m | D315: 1 | E315: 0 | F315: 0
B317: REINFORCEMENT
B319: Steel reinforcement to structural concrete work:
A321: 16 | B321: Various diameter bars | C321: t | D321: 1 | E321: 0 | F321: 0
B323: Fabric reinforcement:
A325: 17 | B325: Type 395 fabric reinforcement in concrete surface beds, slabs, etc | C325: m2 | D325: 1 | E325: 0 | F325: 0
B327: TOTAL CONCRETE, FORMWORK AND REINFORCEMENT | F327: =SUM(F267:F326) -> R200,000.00
B330: BILL No. 4
B332: MASONRY
B334: PREAMBLES
B336: For preambles refer to "Model Preambles for Trades"
B338: SUPPLEMENTARY PREAMBLES
B340: BRICKWORK
B342: Sizes in descriptions
B344: Where sizes in descriptions are given in brick units, "one brick" shall represent the length and "half brick" the width of a brick
B346: Hollow walls etc
B348: Descriptions of hollow walls shall be deemed to include leaving every fifth perpend of the bottom course of the external skin open as a weep hole.
B350: BUDGETARY ALLOWANCES The following budgetary allowances to be measured in accordance with the aforegoing and priced at scheduled rates
B352: Allow for general masonry works contingencies to be used as directed by the principal agent and to be measured in accordance with the aforegoing and priced at scheduled rates | C352: Item | D352: 1 | F352: R350,000.00
B354: FOUNDATIONS
B356: Brickwork of NFX bricks (14 MPa nominal compressive strength) in class I mortar
A358: 1 | B358: One brick walls | C358: m2 | D358: 1 | E358: 0 | F358: =E358*D358 -> 0
A360: 2 | B360: 280mm Hollow walls of two half brick skins including wire ties and filling 60mm cavity solid with 15MPa/19mm stone unreinforced concrete | C360: m2 | D360: 1 | E360: 0 | F360: =E360*D360 -> 0
B362: SUPERSTRUCTURE
B364: Brickwork of NFP bricks in class II mortar
A366: 3 | B366: Half brick walls | C366: m2 | D366: 1 | E366: 0 | F366: =E366*D366 -> 0
A368: 4 | B368: One brick walls | C368: m2 | D368: 1 | E368: 0 | F368: =E368*D368 -> 0
A370: 5 | B370: 280mm Hollow walls of two half brick skins including wire ties | C370: m2 | D370: 1 | E370: 0 | F370: =E370*D370 -> 0
B372: BRICKWORK SUNDRIES
A374: 6 | B374: Closing 60mm cavity of hollow wall vertically with brickwork half brick wide | C374: m | D374: 1 | E374: 0 | F374: =E374*D374 -> 0
A376: 7 | B376: Closing 60mm cavity of hollow wall horizontally with one course of brickwork | C376: m | D376: 1 | E376: 0 | F376: =E376*D376 -> 0
B378: Brickwork reinforcement
A380: 8 | B380: 75mm Wide reinforcement built in horizontally | C380: m | D380: 1 | E380: 0 | F380: =E380*D380 -> 0
A382: 9 | B382: 150mm Wide reinforcement built in horizontally | C382: m | D382: 1 | E382: 0 | F382: =E382*D382 -> 0
B384: Prestressed fabricated lintels:
A386: 10 | B386: 110 x 75mm Lintels in lengths not exceeding 3m | C386: m | D386: 1 | E386: 0 | F386: =E386*D386 -> 0
A388: 11 | B388: 150 x 70mm Lintels in lengths not exceeding 3m | C388: m | D388: 1 | E388: 0 | F388: =E388*D388 -> 0
B390: TOTAL MASONRY | F390: =SUM(F352:XFD388) -> R350,000.00
B393: BILL No. 5
B395: WATERPROOFING
B397: SUPPLEMENTARY PREAMBLES
B399: Waterproofing
B401: Waterproofing of roofs, basements, etc shall be laid under a ten year guarantee. Waterproofing to roofs shall be laid to even falls to outlets etc with necessary ridges, hips and valleys. Descriptions of sheet or membrane waterproofing shall be deemed to include additional labour to turn-ups and turn-downs
... 373 more rows
